Cogmind - Beta 14 @@@ ROGUE MODE // 2025.03.12 @ 18:59:30 Player: Prakos Result: Self-destructed Performance ------------- Evolutions (2) 1000 Regions Visited (5) 1000 Robots Destroyed (27) 135 Value Destroyed (435) 435 Prototype IDs (3) 60 Alien Tech Used (0) 0 Bonus (25) 25 TOTAL SCORE: 2655 Bonus ------- Follower Combat Kills 25 Cogmind --------- Core Integrity 340/550 Matter 238/300 Energy 19/100 System Corruption 0% Temperature Cool (0) Movement Core (100) Ox1 Location -8/Materials Parts ------- > --- POWER (1) -------- (None) > --- PROPULSION (4) --- Flight Unit Flight Unit Flight Unit > --- UTILITY (4) ------ Targeting Computer Hacking Suite > --- WEAPON (2) ------- Light EM Pulse Cannon > --- INVENTORY (5) ---- Flight Unit Flight Unit Flight Unit Flight Unit Peak State ------------ > --- POWER ------------ Deuterium Engine > --- PROPULSION ------- Flight Unit Flight Unit Flight Unit Flight Unit > --- UTILITY ---------- Advanced Weight Redist. System Targeting Computer Hardened Light Armor Plating Hacking Suite > --- WEAPON ----------- EM Shotgun Makeshift Sword > --- INVENTORY -------- Flight Unit Flight Unit Flight Unit Flight Unit Autogun [Rating: 22] Favorites ----------- Power Ion Engine Engine Ion Engine Propulsion Aluminum Leg Treads Light Treads Leg Aluminum Leg Flight Unit Flight Unit Utility Targeting Computer Device Heat Sink Storage Large Battery Processor Targeting Computer Hackware Hacking Suite Protection Hardened Light Armor Plating Weapon Light Cannon Energy Gun EM Shotgun Energy Cannon Light EM Pulse Cannon Ballistic Gun Autogun Ballistic Cannon Light Cannon Slashing Weapon Makeshift Sword Build | -11 -10 -10 -9 -9 -8 ------- Run | Yrd Mat Min Mat Min Mat Slots Evolved 4 | . . . 2 . 2 Power . | . . . . . . Propulsion 2 | . . . . . 2 Utility 2 | . . . 2 . . Weapon . | . . . . . . Parts Attached 38 | 7 4 . 7 4 16 Power 5 | 1 . . 2 1 1 Engine 5 | 1 . . 2 1 1 Core . | . . . . . . Reactor . | . . . . . . Propulsion 12 | 3 . . . . 9 Treads 1 | 1 . . . . . Leg 2 | 2 . . . . . Wheel . | . . . . . . Hover . | . . . . . . Flight 9 | . . . . . 9 Utility 9 | 1 2 . 2 3 1 Device 2 | . 1 . . . 1 Storage 3 | 1 . . 1 1 . Processor 1 | . 1 . . . . Hackware 1 | . . . 1 . . Protection 2 | . . . . 2 . Artifact . | . . . . . . Weapon 12 | 2 2 . 3 . 5 Energy Gun 2 | . . . 1 . 1 Energy Cannon 1 | . . . . . 1 Ballistic Gun 4 | 2 . . 1 . 1 Ballistic Cannon 3 | . 2 . 1 . . Launcher . | . . . . . . Special Weapon . | . . . . . . Impact Weapon . | . . . . . . Slashing Weapon 2 | . . . . . 2 Piercing Weapon . | . . . . . . Special Melee Weapon . | . . . . . . Unidentified Prototypes 1 | . . . 1 . . Parts Lost 11 | . . . . . 11 Power 1 | . . . . . 1 Propulsion 5 | . . . . . 5 Utility 2 | . . . . . 2 Weapon 3 | . . . . . 3 Highest Loss Streak 10 | . . . . . 10 To Critical Strikes . | . . . . . . Average Slot Usage (%) 95 | . 95 100 96 100 89 Engine 10 | . 14 14 11 11 7 Leg 14 | . 28 28 22 22 . Flight 11 | . . . . . 33 Device 9 | . 9 14 11 11 6 Storage 3 | . 4 . 8 4 . Processor 10 | . 9 14 11 11 9 Hackware 8 | . . . 11 11 9 Protection 4 | . . . . 6 7 Energy Gun 1 | . . . . . 4 Ballistic Gun 6 | . 6 . 2 11 5 Ballistic Cannon 11 | . 21 28 19 11 2 Peak Build Rating 22 | 6 7 7 15 14 22 Average Rating 12 | 4 6 7 11 13 16 On Entrance 7 | . 6 7 7 13 13 Naked Turns . | . . . . . . Heaviest Build 34 | 12 15 10 17 34 20 Greatest Support 25 | 20 20 20 20 20 25 Greatest Overweight (x) 1 | . . . . 1 . Average Overweight (x) . | . . . . . . Largest Inventory Capacity 15 | 8 8 5 5 15 5 Average Capacity 5 | 6 6 5 5 5 5 Most Carried 6 | 4 6 5 5 5 5 Average Carried 4 | 2 4 5 4 4 3 Final Capacity 8 | 8 5 5 5 5 5 Final Carried 5 | 4 5 5 5 5 4 Class Distribution -------------------- 67% | Mutant 26% | Scavenger-Sprinter 5% | Scavenger-Mutant Dominant Class ---------------- Mutant | -10/Materials Mutant | -10/Mines Mutant | -9/Materials Mutant | -9/Mines Scavenger-Sprinter | -8/Materials Resources | -11 -10 -10 -9 -9 -8 ----------- Run | Yrd Mat Min Mat Min Mat Matter Collected 781 | 254 . . 210 129 188 Remotely . | . . . . . . Salvage Created 519 | 52 2 . 144 87 234 Parts 49 | 2 1 . 19 6 21 Haulers Intercepted . | . . . . . . Recyclers Shooed . | . . . . . . Parts Field Recycled . | . . . . . . Retrieved Matter . | . . . . . . Parts Self-Destructed . | . . . . . . Prevented . | . . . . . . Kills | -11 -10 -10 -9 -9 -8 ------- Run | Yrd Mat Min Mat Min Mat Combat Hostiles Destroyed 23 | . . . 3 7 13 Melee 4 | . . . . . 4 Guns 14 | . . . 1 4 9 Cannons 5 | . . . 2 3 . Classes Destroyed 7 | 1 1 . 4 1 . Builder 1 | . . . 1 . . Recycler 1 | 1 . . . . . Operator 1 | . 1 . . . . Watcher 1 | . . . 1 . . Swarmer 19 | . . . . 7 12 Duelist 1 | . . . 1 . . Sentry 3 | . . . 2 . 1 Best Kill Streak 8 | 1 1 . 2 3 8 Combat Bots Only 8 | . . . 2 3 8 Max Kills in Single Turn 1 | 1 1 . 1 1 1 Gunslinging . | . . . . . . Exploded . | . . . . . . Melee 1 | . . . . . 1 Uniques/NPCs Destroyed . | . . . . . . Combat | -11 -10 -10 -9 -9 -8 -------- Run | Yrd Mat Min Mat Min Mat Hostile Shots Fired 164 | . . . 6 32 126 Missed 56 | . . . 4 13 39 Damage Taken 901 | . . . 28 155 718 Core 230 | . . . . 20 210 Absorbed by Shields . | . . . . . . Core Remaining (%) 98 | 100 . 100 . 95 . Volleys Fired 49 | 2 2 . 12 14 19 Largest 2 | 2 2 . 2 2 2 Hottest 70 | 40 70 . 70 58 68 Shots Fired 91 | 4 4 . 24 28 31 Gun 47 | 4 . . 5 14 24 Cannon 44 | . 4 . 19 14 7 Launcher . | . . . . . . Special . | . . . . . . Kinetic 82 | 4 4 . 24 28 22 Thermal . | . . . . . . Explosive . | . . . . . . Electromagnetic 9 | . . . . . 9 Robot Hit Streak 12 | 3 2 . 12 6 8 Robot Miss Streak 4 | . 1 . 4 3 3 Penetration Max . | . . . . . . Secondary Targets 1 | . . . . . 1 Max Gunslinging Chain 1 | . . . . . 1 Shots Hit Robots 63 | 3 2 . 16 15 27 Core Hits 32 | 2 1 . 9 6 14 Critical Kills . | . . . . . . Critical Parts Destroyed 1 | . . . . 1 . Critical Strikes 2 | . . . . 1 1 Destroy 1 | . . . . 1 . Sever 1 | . . . . . 1 Melee Attacks 13 | . . . . . 13 Impact . | . . . . . . Slashing 13 | . . . . . 13 Piercing . | . . . . . . Sneak Attacks . | . . . . . . Combat Hostiles . | . . . . . . Follow-up Attacks . | . . . . . . Damage Inflicted 1182 | 35 36 . 318 240 553 Guns 480 | 35 . . 64 137 244 Cannons 446 | . 36 . 248 103 59 Explosions . | . . . . . . Melee 249 | . . . . . 249 Ramming 7 | . . . 6 . 1 Kinetic 817 | 35 36 . 312 240 194 Thermal . | . . . . . . Explosive . | . . . . . . Electromagnetic 109 | . . . . . 109 Impact . | . . . . . . Slashing 249 | . . . . . 249 Piercing . | . . . . . . Highest Corruption . | . . . . . . Average Corruption . | . . . . . . Corruption Purged . | . . . . . . Corruption Blocked . | . . . . . . Overload Shots . | . . . . . . Overflow Damage 33 | . . . . 15 18 Projectiles 20 | . . . . 15 5 Explosions . | . . . . . . Melee 13 | . . . . . 13 Knockbacks 8 | . . . 4 4 . Impact . | . . . . . . Kinetic 6 | . . . 4 2 . Secondary 2 | . . . . 2 . Self-Inflicted Damage . | . . . . . . Shots . | . . . . . . Rammed 1 | . . . . . 1 Targets Rammed 3 | . . . 2 . 1 Kicked 2 | . . . 2 . . Crushed . | . . . . . . Highest Temperature 91 | . . . . 4 91 Average Temperature 38 | . . . . 3 46 Received Heat Transfer 18 | . . . . . 18 Siege Activations . | . . . . . . Robots Corrupted . | . . . . . . Combat Hostiles . | . . . . . . Parts Fried . | . . . . . . Impact Corruptions . | . . . . . . Robots Melted . | . . . . . . Combat Hostiles . | . . . . . . Parts Melted . | . . . . . . Heat Transferred . | . . . . . . Parts Sabotaged . | . . . . . . Parts Stolen . | . . . . . . Parts Stripped . | . . . . . . Power Chain Reactions . | . . . . . . Alert | -11 -10 -10 -9 -9 -8 ------- Run | Yrd Mat Min Mat Min Mat Peak Influence 347 | 5 23 8 137 303 347 Initial 117 | . 3 8 2 53 117 Average 134 | 2 14 8 59 192 202 Maximum Alert Level 1 | . . . . 1 1 Low Security (%) 67 | 100 100 100 100 63 33 Level 1 32 | . . . . 36 66 Level 2 . | . . . . . . Level 3 . | . . . . . . Level 4 . | . . . . . . Level 5 . | . . . . . . High Security . | . . . . . . Max Security . | . . . . . . Squads Dispatched 4 | . 1 . 2 . 1 Investigation 1 | . . . 1 . . Extermination . | . . . . . . Reinforcement 3 | . 1 . 1 . 1 Assault . | . . . . . . Garrison . | . . . . . . Intercept . | . . . . . . Searches Triggered . | . . . . . . Construction Impeded . | . . . . . . Haulers Reinforced . | . . . . . . Active Scanning Responses . | . . . . . . Cargo Convoy Interrupts . | . . . . . . Stealth | -11 -10 -10 -9 -9 -8 --------- Run | Yrd Mat Min Mat Min Mat Distress Signals 3 | . . . 1 . 2 Communications Jammed . | . . . . . . Distress Signals . | . . . . . . Times Spotted 39 | . 2 . 8 10 19 Peak Tracking Total 9 | . 1 . 6 4 9 Tactical Retreats 5 | . . . 1 3 1 Traps | -11 -10 -10 -9 -9 -8 ------- Run | Yrd Mat Min Mat Min Mat Traps Triggered 1 | . . . 1 . . Indirectly . | . . . . . . Trap Hack Attempts . | . . . . . . Triggered . | . . . . . . Disarmed . | . . . . . . Reprogrammed . | . . . . . . Reused . | . . . . . . Traps Extracted . | . . . . . . Installed . | . . . . . . Triggered . | . . . . . . Machines | -11 -10 -10 -9 -9 -8 ---------- Run | Yrd Mat Min Mat Min Mat Machines Disabled 2 | . 1 . . 1 . Max in Single Turn 1 | . 1 . . 1 . Machines Repaired . | . . . . . . Machines Dismantled . | . . . . . . Machines Sabotaged . | . . . . . . Overloaded Fab Kills . | . . . . . . Hacking | -11 -10 -10 -9 -9 -8 --------- Run | Yrd Mat Min Mat Min Mat Machines Accessed 8 | . 2 . 3 . 3 Terminals 4 | . 1 . 2 . 1 Fabricators . | . . . . . . Repair Stations . | . . . . . . Recycling Units 3 | . 1 . 1 . 1 Scanalyzers 1 | . . . . . 1 Garrison Access . | . . . . . . Total Hacks 23 | . 7 . 9 . 7 Successful 13 | . 2 . 6 . 5 Failed 10 | . 5 . 3 . 2 Catastrophic 3 | . 1 . 1 . 1 Database Lockouts . | . . . . . . Manual 6 | . 1 . 3 . 2 Terminals 12 | . 2 . 7 . 3 Fabricators . | . . . . . . Repair Stations . | . . . . . . Recycling Units 9 | . 5 . 2 . 2 Scanalyzers 2 | . . . . . 2 Garrison Access . | . . . . . . Terminal Hacks 4 | . . . 3 . 1 Prototype ID Bank 1 | . . . 1 . . Locate Traps 1 | . . . . . 1 Registered Components 1 | . . . 1 . . Zone Layout 1 | . . . 1 . . Fabricator Hacks . | . . . . . . Repair Station Hacks . | . . . . . . Recycling Unit Hacks 3 | . 1 . 1 . 1 Retrieve Components 3 | . 1 . 1 . 1 Scanalyzer 2 | . . . . . 2 Insert Component 1 | . . . . . 1 Analyze 1 | . . . . . 1 Garrison Access Hacks . | . . . . . . Unauthorized Hacks 4 | . 1 . 2 . 1 Terminals 4 | . 1 . 2 . 1 Assimilate 1 | . . . . . 1 Botnet 3 | . 1 . 2 . . Fabricators . | . . . . . . Repair Stations . | . . . . . . Recycling Units . | . . . . . . Scanalyzers . | . . . . . . Garrison Access . | . . . . . . Data Cores Recovered . | . . . . . . Used . | . . . . . . Hacking Detections 6 | . 2 . 2 . 2 Full Trace Events . | . . . . . . Feedback Events . | . . . . . . Feedback Blocked . | . . . . . . Robot Schematics Acquired . | . . . . . . Robots Built . | . . . . . . Authchips . | . . . . . . Time . | . . . . . . Total Robot Build Rating . | . . . . . . Part Schematics Acquired 1 | . . . . . 1 Parts Built . | . . . . . . Authchips . | . . . . . . Time . | . . . . . . Total Part Build Rating . | . . . . . . Parts Repaired . | . . . . . . Time . | . . . . . . Parts Recycled . | . . . . . . Recycled Matter . | . . . . . . Retrieved Matter . | . . . . . . Retrieved Components 1 | . 1 . . . . Parts Scanalyzed 1 | . . . . . 1 Part Schematics Acquired 1 | . . . . . 1 Parts Damaged . | . . . . . . Bothacking | -11 -10 -10 -9 -9 -8 ------------ Run | Yrd Mat Min Mat Min Mat Used RIF Installer . | . . . . . . Robots Hacked . | . . . . . . Non-combat . | . . . . . . Combat . | . . . . . . Robot Hacks Applied . | . . . . . . Relay Couplers Released . | . . . . . . Fabnet Peak Effective % . | . . . . . . Robots Rewired . | . . . . . . Allies Hacked . | . . . . . . Hacks Repelled . | . . . . . . Allies | -11 -10 -10 -9 -9 -8 -------- Run | Yrd Mat Min Mat Min Mat Total Allies 3 | . . 3 . . . Largest Group 3 | . . . 3 . . Highest-Rated Group 40 | . . . 40 . . Highest-Rated Ally 16 | . . . 16 . . Total Orders . | . . . . . . Ally Attacks 40 | . . . 40 . . Total Damage 386 | . . . 386 . . Kills 2 | . . . 2 . . Allies Corrupted . | . . . . . . Allies Melted . | . . . . . . Intel | -11 -10 -10 -9 -9 -8 ------- Run | Yrd Mat Min Mat Min Mat Robot Analysis Total . | . . . . . . Derelict Logs Recovered 2 | . . 1 . 1 . Drone Launches . | . . . . . . Drone Recoveries . | . . . . . . Exploration | -11 -10 -10 -9 -9 -8 ------------- Run | Yrd Mat Min Mat Min Mat Turns Passed 1400 | 75 87 84 301 385 468 Spaces Moved 1003 | 46 59 71 192 274 361 Core 6 | 2 . . . . 4 Treads 4 | 4 . . . . . Legs 636 | 40 59 71 192 274 . Wheels . | . . . . . . Hover . | . . . . . . Flight 357 | . . . . . 357 Fastest Speed 31 | 50 120 120 120 120 31 Average Speed 88 | 120 120 120 120 120 31 Slowest Speed 190 | 160 120 120 120 190 50 Overloaded Moves . | . . . . . . Propulsion Burnouts . | . . . . . . Robots Hopped 6 | . . . . . 6 Cave-ins Triggered . | . . . . . . Exploration Rate (%) 30 | 4 20 30 26 73 30 Regions Visited 5 Branch Regions 2 Pre-discovered Areas 1 | . . 1 . . . Known Exits Taken . | . . . . . . Unknown Exits Taken 5 | 1 1 1 1 1 . Scrap Searched . | . . . . . . Spaces Dug 1 | . . . . . 1 Terrain Destroyed 1 | . . . . . 1 Melee 1 | . . . . . 1 Projectile . | . . . . . . AOE . | . . . . . . Terrain Rammed . | . . . . . . Walls Destroyed . | . . . . . . Machines Disabled . | . . . . . . Actions | -11 -10 -10 -9 -9 -8 --------- Run | Yrd Mat Min Mat Min Mat Total 1415 | 58 72 70 239 306 670 Wait 270 | . . . 20 2 248 Move 986 | 45 58 70 191 273 349 Hop 6 | . . . . . 6 Pick Up 21 | 3 2 . 1 5 10 Fast Attach 23 | 7 4 . 5 3 4 Attach 11 | . . . 1 . 10 Detach 5 | 1 2 . 1 . 1 Swap 4 | . . . 1 1 2 Drop 24 | . 4 . 5 8 7 Fire 49 | 2 2 . 12 14 19 Melee 13 | . . . . . 13 Ram 1 | . . . . . 1 Kick 2 | . . . 2 . . Crush . | . . . . . . Escape Stasis . | . . . . . . Rewire . | . . . . . . Trap . | . . . . . . Miscellaneous . | . . . . . . Route ------- -11/Scrapyard -10/Materials -10/Mines -9/Materials -9/Mines -8/Materials History --------- Turn | Location | Event 10 | -11/Scrapyard | Discovered new exit (range 15) 76 | -11/Scrapyard | Entered Materials 152 | -10/Materials | Discovered new exit (range 6) 163 | -10/Materials | Entered Mines 171 | -10/Mines | Learned location of Zion (-7) 234 | -10/Mines | Discovered new exit (range 7) 245 | -10/Mines | Assisted by bots powering up and referring to "LRC-V3" 247 | -10/Mines | Entered Materials 247 | -9/Materials | Accompanied by 3 allies 247 | -9/Materials | Evolved 2 slots: Utility x2 306 | -9/Materials | Build established: Mutant 529 | -9/Materials | Discovered new exit (range 11) 548 | -9/Materials | Entered Mines 631 | -9/Mines | Learned Materials emergency access door positions 755 | -9/Mines | A weapon hastily lodged in a ceiling crevice suddenly fell to the ground 927 | -9/Mines | Discovered new exit (range 5) 933 | -9/Mines | Entered Materials 933 | -8/Materials | Evolved 2 slots: Propulsion x2 1226 | -8/Materials | Build established: Scavenger-Sprinter 1386 | -8/Materials | Destroyed 8 combat bots 1393 | -8/Materials | Lost 10 parts (1p4n2u3w) 1401 | -8/Materials | Self-destructed Last Messages --------------- 01365_ Slammed into S-10 Pest. 01365_ S-10 Pest destroyed. [Achievement: Fist Fight] 01366_ Acquired 20 matter. 01366_ R-06 Scavenger collects Flight Unit. 01370_ Acquired Flight Unit. 01371_ R-06 Scavenger collects Lgt. Ion Engine. 01371_ Acquired Flight Unit. 01375_ Acquired 32 matter. 01375_ Acquired Flight Unit. 01376_ Acquired 11 matter. 01379_ Acquired Lgt. EM Pulse Cannon. 01382_ K-01 Serf collects debris. 01397_ Destroyed Imp. Hover Unit. 01398_ W-25 Informer sends out distress signal. 01399_ Door malfunctions. 01400_ Flight Unit destroyed. 01401_ Slug penetrates Atomic Centrifuge. 01401_ Atomic Centrifuge disabled. 01401_ K-01 Serf collects debris. Map ----- +----------------------------------------------------+ | ?????????????????????????????????????????????????? | | ?????????????????????????????????????????????????? | | ?????????????????????????????????????????????????? | | ?????????????????????????????? ???????????????? | | ?????????????????????????? ? ???????????????? | | ???????????????????????? #?????????????? | | ?????????????????????? #?????????????? | | ?????????????????????? #?????????????? | | ???????????????????? ###???????????? | | ????????????????????? ###+####????? | | ????????????????? ? ?????? | | ?????????????????? ?????? | | ?????????????????? ??????? | | ??????????????? ? ????? | | ???????????????"h """ """ """ """ """ """???? | | ??????????????"" "" """ """ """ """ """???? | | ?????????????""" "" """ """ """ """ """ "" | | ???????????? * | | ???????????? % r * % | | ???????????? a k | | ??????????? t %############## | | ??????????? w ########????????????? | | ??????????# #???????????????????? | | ??????????# #???????????????????? | | ??????????# a k #???????????????????? | | ??????????# @ #???????????????????? | | ?????????? #???????????????????? | | ?????????? #???????????????????? | | ?????????? #???????????????????? | | ?????????? #???????????????????? | | ?????????? ]! #??###+###??????????? | | ???????????? ""T"" !! w #### ######?????? | | ??????????????"""" ! T" ????? | | ?????????????? " ???? | | ????????????? k ???? | | ????????????###/### %#### #### ######?????? | | ?????????????? ???# ???# #??## ##??????????? | | ??????????????????# ???# #???? #???????????? | | ??????????????""??# ????# #???? #???????????? | | ?????????????"""??# ?????# #???? / ??????????? | | ?????????????""""?+ ?????# #???? #^ ?????????? | | ????????????"""""?#?????## ##??? #? ?????????? | | #####?????? """"" ??????# #??? #???????????? | | #????# """"" ####### #??? #???????????? | | #????# + #??# #???????????? | | #?????############=## #??# #???????????? | | #???######???????#[## #??# #???????????? | | ###+#??##!!!!##??????#+########### #???????????? | | * #??#! !#??????# !* # #???????????? | | ###!#??# #??????#! [ ! # #???????????? | +----------------------------------------------------+ Best States ------------- Heat Dissipation 38 Energy Generation 14 Energy Capacity 465 Matter Stores 300 Matter Capacity 300 Sight Range 16 Terrain Scan Density 10 Additional Mass Support 9 Armor Coverage 150 Evasion (%) 63 Targeting Accuracy 5 Recoil Reduction 1 Offensive Hacking 10 Item Schematics ----------------- Flight Unit | -8/Materials | Scanalyzed Robot Schematics ------------------ None Fabricated ------------ Nothing Alien Tech Used ----------------- None Achievements -------------- Fist Fight Challenges ------------ None Game ------ Seed DynamicHardlightNukerbomber Manual? 0 Play Time 00:25:25 Cumulative 25.4 hours Start 2025.03.05 @ 22:44:33 End 2025.03.12 @ 18:59:30 Sessions 1 Manual Loads 0 Difficulty Rogue Special Mode None Game No. 17 Rogue 17 Adventurer 0 Explorer 0 Win Type - Total 0 Types 0/0/0/0/0/0/0/0/0 Lore% 6 Gallery% 19 Achievement% 26 Wizard Run 0 Options --------- Layout 1 ASCII 0 Keyboard 0 Movement Mouse Keybinds 0 Fullscreen 1 Font 24/Smallcaps Map View 50x35 Zoom Use 0% Tactical HUD 1 Map Filters NONE Filters NONE Steam 1 RUN: 86087be2-05d5-449b-8986-7c911e6b4b14